Cogmind - Beta 15 @@@ ROGUE MODE // 2025.06.29 @ 03:45:16 Player: pyroperro Result: Destroyed by D-53 Grenadier with Mini Grenade Launcher Performance ------------- Evolutions (0) 0 Regions Visited (4) 800 Robots Destroyed (20) 100 Value Destroyed (578) 578 Prototype IDs (34) 680 Alien Tech Used (0) 0 Bonus (300) 300 TOTAL SCORE: 2458 Bonus ------- Aligned with FarCom 300 Cogmind --------- Core Integrity 0/250 Matter 270/300 Energy 160/160 System Corruption 0% Temperature Cool (0) Movement Treading (160) Location -9/Mines Parts ------- > --- POWER (1) -------- Light Nuclear Core > --- PROPULSION (2) --- Light Treads Light Treads > --- UTILITY (2) ------ Large Storage Unit Light Armor Plating > --- WEAPON (2) ------- Light Cannon Rocket Launcher > --- INVENTORY (15) --- Ion Engine Light Treads Light Treads Light Treads Compact Wheel Medium Storage Unit Large Storage Unit Transport Network Coupler 0b10 Alert Chip ECM Suite Utility Shielding Utility Shielding Light Cannon Datajack Mining Claw Peak State ------------ > --- POWER ------------ Light Nuclear Core > --- PROPULSION ------- Light Treads Light Treads > --- UTILITY ---------- Large Storage Unit Light Armor Plating > --- WEAPON ----------- Light Cannon Rocket Launcher > --- INVENTORY -------- Ion Engine Light Treads Light Treads Light Treads Compact Wheel Medium Storage Unit Large Storage Unit Transport Network Coupler 0b10 Alert Chip ECM Suite Utility Shielding Utility Shielding Light Cannon Datajack Mining Claw [Rating: 12] Favorites ----------- Power Ion Engine Engine Ion Engine Power Core Light Nuclear Core Propulsion Light Treads Treads Light Treads Utility Large Storage Unit Storage Large Storage Unit Protection Light Armor Plating Weapon Light Cannon Energy Gun EM Pulse Gun Ballistic Cannon Light Cannon Launcher Rocket Launcher Special Melee Weapon Datajack Build | -11 -10 -10 -10 -9 ------- Run | Yrd Mat Min Exi Min Slots Evolved . | . . . . . Power . | . . . . . Propulsion . | . . . . . Utility . | . . . . . Weapon . | . . . . . Parts Attached 17 | 6 5 5 1 . Power 2 | 1 . 1 . . Engine 1 | 1 . . . . Core 1 | . . 1 . . Reactor . | . . . . . Propulsion 3 | 2 . 1 . . Treads 3 | 2 . 1 . . Leg . | . . . . . Wheel . | . . . . . Hover . | . . . . . Flight . | . . . . . Utility 4 | 1 2 1 . . Device . | . . . . . Storage 3 | 1 2 . . . Processor . | . . . . . Hackware . | . . . . . Protection 1 | . . 1 . . Artifact . | . . . . . Weapon 8 | 2 3 2 1 . Energy Gun 3 | 2 1 . . . Energy Cannon . | . . . . . Ballistic Gun . | . . . . . Ballistic Cannon 3 | . 2 1 . . Launcher 1 | . . 1 . . Special Weapon . | . . . . . Impact Weapon . | . . . . . Slashing Weapon . | . . . . . Piercing Weapon . | . . . . . Special Melee Weapon 1 | . . . 1 . Unidentified Prototypes . | . . . . . Parts Lost 1 | . . 1 . . Power . | . . . . . Propulsion 1 | . . 1 . . Utility . | . . . . . Weapon . | . . . . . Highest Loss Streak 1 | . . 1 . . To Critical Strikes 1 | . . 1 . . Average Backups 11 | 2 8 14 14 15 Power . | . 1 1 1 1 Propulsion 3 | . 3 4 4 4 Utility 4 | . 2 6 6 7 Weapon 1 | . . 2 2 2 Tool/Special . | . . . . . Unused Backups 14 | . 2 . . 12 Power 1 | . . . . 1 Propulsion 5 | . 1 . . 4 Utility 6 | . . . . 6 Weapon 2 | . 1 . . 1 Tool/Special . | . . . . . Average Slot Usage (%) 91 | . 84 92 100 100 Engine 6 | . 14 3 . . Core 7 | . . 10 14 14 Treads 27 | . 27 27 28 28 Storage 14 | . 14 14 14 14 Protection 6 | . . 6 14 14 Energy Gun 5 | . 14 . . . Ballistic Cannon 21 | . 13 27 25 17 Peak Build Rating 12 | 6 7 10 11 12 Average Rating 8 | 5 6 8 10 11 On Entrance 6 | . 6 7 10 11 Naked Turns . | . . . . . Heaviest Build 35 | 14 31 34 34 35 Greatest Support 40 | 40 40 40 40 40 Greatest Overweight (x) 3 | 1 3 1 . . Average Overweight (x) . | . . . . . Largest Inventory Capacity 15 | 8 15 15 15 15 Average Capacity 13 | 7 10 15 15 15 Most Carried 15 | 3 14 15 15 15 Average Carried 11 | 2 8 14 14 15 Final Capacity 15 | 8 15 15 15 15 Final Carried 15 | 3 14 15 15 15 Class Distribution -------------------- 100% | Mutant Dominant Class ---------------- Mutant | -10/Materials Mutant | -10/Mines Mutant | -10/Exiles Mutant | -9/Mines Resources | -11 -10 -10 -10 -9 ----------- Run | Yrd Mat Min Exi Min Matter Collected 596 | 260 100 236 . . Remotely . | . . . . . Salvage Created 710 | 64 388 258 . . Parts 38 | 1 25 12 . . Haulers Intercepted 2 | . 2 . . . Recyclers Shooed . | . . . . . Parts Field Recycled . | . . . . . Retrieved Matter . | . . . . . Parts Self-Destructed . | . . . . . Prevented . | . . . . . Kills | -11 -10 -10 -10 -9 ------- Run | Yrd Mat Min Exi Min Combat Hostiles Destroyed 15 | . 7 8 . . Guns 6 | . 6 . . . Cannons 8 | . 1 7 . . AOE 1 | . . 1 . . Classes Destroyed 7 | 1 5 1 . . Hauler 2 | . 2 . . . Recycler 1 | 1 . . . . Operator 1 | . 1 . . . Watcher 1 | . 1 . . . Swarmer 2 | . 2 . . . Grunt 11 | . 5 6 . . Sentry 2 | . . 2 . . Best Kill Streak 2 | 1 2 2 . . Combat Bots Only 2 | . 2 2 . . Max Kills in Single Turn 1 | 1 1 1 . . Gunslinging . | . . . . . Exploded 1 | . . 1 . . Melee . | . . . . . Uniques/NPCs Destroyed . | . . . . . Combat | -11 -10 -10 -10 -9 -------- Run | Yrd Mat Min Exi Min Hostile Shots Fired 92 | . 41 47 . 4 Missed 33 | . 18 14 . 1 Hits 59 | . 23 33 . 3 Projectile 59 | . 23 33 . 3 AOE 5 | . . . . 5 Critical Strikes 2 | . . 2 . . Damage Taken 884 | . 249 457 . 178 Core 253 | . 62 98 . 93 Absorbed by Shields . | . . . . . Core Remaining (%) 100 | 100 . . . . Volleys Fired 57 | 5 30 22 . . Largest 2 | 2 2 2 . . Hottest 90 | 90 90 63 . . Shots Fired 114 | 10 60 44 . . Gun 65 | 10 55 . . . Cannon 46 | . 5 41 . . Launcher 3 | . . 3 . . Special . | . . . . . Kinetic 46 | . 5 41 . . Thermal 26 | 5 21 . . . Explosive 3 | . . 3 . . Electromagnetic 39 | 5 34 . . . Robot Hit Streak 10 | 5 10 8 . . Robot Miss Streak 5 | 4 5 3 . . Penetration Max . | . . . . . Secondary Targets . | . . . . . Shots Hit Robots 75 | 6 36 28 5 . Core Hits 29 | 2 16 11 . . Critical Kills . | . . . . . Critical Parts Destroyed . | . . . . . Critical Strikes 5 | . 2 3 . . Blast 4 | . 1 3 . . Corrupt 1 | . 1 . . . Melee Attacks 5 | . . . 5 . Impact . | . . . . . Slashing . | . . . . . Piercing . | . . . . . Sneak Attacks 5 | . . . 5 . Combat Hostiles . | . . . . . Follow-up Attacks . | . . . . . Damage Inflicted 1139 | 78 491 570 . . Guns 533 | 78 455 . . . Cannons 506 | . 35 471 . . Explosions 88 | . . 88 . . Melee . | . . . . . Ramming 12 | . 1 11 . . Kinetic 506 | . 35 471 . . Thermal 163 | 38 125 . . . Explosive 88 | . . 88 . . Electromagnetic 370 | 40 330 . . . Impact . | . . . . . Slashing . | . . . . . Piercing . | . . . . . Highest Corruption . | . . . . . Average Corruption . | . . . . . Corruption Purged . | . . . . . Corruption Blocked . | . . . . . Overload Shots . | . . . . . Overflow Damage 32 | . . 32 . . Projectiles . | . . . . . Explosions 32 | . . 32 . . Melee . | . . . . . Knockbacks 4 | . . 4 . . Impact . | . . . . . Kinetic 4 | . . 4 . . Secondary . | . . . . . Self-Inflicted Damage . | . . . . . Shots . | . . . . . Rammed 4 | . 1 3 . . Targets Rammed 4 | . 1 3 . . Kicked . | . . . . . Crushed . | . . . . . Highest Temperature 339 | 60 339 105 . . Average Temperature 75 | 28 108 31 . . Received Heat Transfer 363 | . 105 246 . 12 Effects 1 | . 1 . . . Energy Bleed 1 | . 1 . . . Siege Activations . | . . . . . Martial Activations . | . . . . . Shielding Activations . | . . . . . Robots Disrupted . | . . . . . Combat Hostiles . | . . . . . Robots Corrupted . | . . . . . Combat Hostiles . | . . . . . Parts Fried 4 | . 4 . . . Impact Corruptions . | . . . . . Robots Melted . | . . . . . Combat Hostiles . | . . . . . Parts Melted . | . . . . . Heat Transferred 481 | 111 370 . . . Parts Sabotaged . | . . . . . Parts Stolen . | . . . . . Parts Stripped . | . . . . . Power Chain Reactions . | . . . . . Alert | -11 -10 -10 -10 -9 ------- Run | Yrd Mat Min Exi Min Maximum Alert Level . | . . . . . Low Security (%) 100 | 100 100 100 . 100 Level 1 . | . . . . . Level 2 . | . . . . . Level 3 . | . . . . . Level 4 . | . . . . . Level 5 . | . . . . . High Security . | . . . . . Max Security . | . . . . . Peak Influence 90 | 5 90 79 . . Initial . | . . . . . Average 18 | . 15 24 . . Influence Increases 583 | 5 299 279 . . Destroy 0b10 Robot/C 300 | . 140 160 . . Destroy 0b10 Robot/NC 25 | 5 20 . . . Destroy Leader 76 | . 46 30 . . Successful Hack 16 | . 16 . . . Destroy Structure 31 | . 2 29 . . Lose Combat Pursuer 135 | . 75 60 . . Influence Decreases 583 | 5 299 279 . . Time Decay 568 | 5 299 264 . . Lost Ally 15 | . . 15 . . Squads Dispatched 2 | . 2 . . . Investigation 1 | . 1 . . . Extermination . | . . . . . Reinforcement 1 | . 1 . . . Assault . | . . . . . Garrison . | . . . . . Intercept . | . . . . . Searches Triggered . | . . . . . Construction Impeded . | . . . . . Haulers Reinforced . | . . . . . Active Scanning Responses . | . . . . . Cargo Convoy Interrupts . | . . . . . Stealth | -11 -10 -10 -10 -9 --------- Run | Yrd Mat Min Exi Min Distress Signals 1 | . 1 . . . Communications Jammed . | . . . . . Distress Signals . | . . . . . Times Spotted 24 | . 13 9 . 2 Peak Tracking Total 3 | . 3 3 . 2 Tactical Retreats 6 | . 3 3 . . Traps | -11 -10 -10 -10 -9 ------- Run | Yrd Mat Min Exi Min Traps Triggered 1 | . 1 . . . Indirectly . | . . . . . Trap Hack Attempts . | . . . . . Triggered . | . . . . . Disarmed . | . . . . . Reprogrammed . | . . . . . Reused . | . . . . . Traps Extracted . | . . . . . Installed . | . . . . . Triggered . | . . . . . Machines | -11 -10 -10 -10 -9 ---------- Run | Yrd Mat Min Exi Min Machines Disabled 1 | . . 1 . . Max in Single Turn 1 | . . 1 . . Machines Repaired . | . . . . . Machines Dismantled . | . . . . . Machines Sabotaged . | . . . . . Overloaded Fab Kills . | . . . . . Hacking | -11 -10 -10 -10 -9 --------- Run | Yrd Mat Min Exi Min Machines Accessed 7 | . 5 . 2 . Terminals 5 | . 5 . . . Fabricators . | . . . . . Repair Stations . | . . . . . Recycling Units . | . . . . . Scanalyzers . | . . . . . Garrison Access . | . . . . . Total Hacks 36 | . 12 . 24 . Successful 31 | . 7 . 24 . Failed 5 | . 5 . . . Catastrophic 1 | . 1 . . . Database Lockouts . | . . . . . Manual 12 | . 10 . 2 . Terminals 12 | . 12 . . . Fabricators . | . . . . . Repair Stations . | . . . . . Recycling Units . | . . . . . Scanalyzers . | . . . . . Garrison Access . | . . . . . Terminal Hacks 27 | . 3 . 24 . Record 23 | . . . 23 . Locate Traps 2 | . 2 . . . Zone Layout 1 | . 1 . . . Proto ID Catalog 1 | . . . 1 . Fabricator Hacks . | . . . . . Repair Station Hacks . | . . . . . Recycling Unit Hacks . | . . . . . Scanalyzer . | . . . . . Garrison Access Hacks . | . . . . . Unauthorized Hacks 4 | . 4 . . . Terminals 4 | . 4 . . . Botnet 2 | . 2 . . . Operators 2 | . 2 . . . Fabricators . | . . . . . Repair Stations . | . . . . . Recycling Units . | . . . . . Scanalyzers . | . . . . . Garrison Access . | . . . . . Data Cores Recovered . | . . . . . Used . | . . . . . Hacking Detections 3 | . 3 . . . Full Trace Events 2 | . 2 . . . Feedback Events . | . . . . . Feedback Blocked . | . . . . . Robot Schematics Acquired . | . . . . . Robots Built . | . . . . . Authchips . | . . . . . Time . | . . . . . Total Robot Build Rating . | . . . . . Part Schematics Acquired . | . . . . . Parts Built . | . . . . . Authchips . | . . . . . Time . | . . . . . Total Part Build Rating . | . . . . . Parts Repaired . | . . . . . Time . | . . . . . Parts Recycled . | . . . . . Recycled Matter . | . . . . . Retrieved Matter . | . . . . . Retrieved Components . | . . . . . Parts Scanalyzed . | . . . . . Part Schematics Acquired . | . . . . . Parts Damaged . | . . . . . Bothacking | -11 -10 -10 -10 -9 ------------ Run | Yrd Mat Min Exi Min Used RIF Installer . | . . . . . Robots Hacked 3 | . . . 3 . Non-combat 2 | . . . 2 . Combat 1 | . . . 1 . Robot Hacks Applied 5 | . . . 5 . parse_system 5 | . . . 5 . Relay Couplers Released . | . . . . . Fabnet Peak Effective % . | . . . . . Robots Rewired . | . . . . . Allies Hacked . | . . . . . Hacks Repelled . | . . . . . Allies | -11 -10 -10 -10 -9 -------- Run | Yrd Mat Min Exi Min Total Allies 2 | . . 2 . . Largest Group 2 | . . 2 . . Highest-Rated Group 46 | . . 46 . . Highest-Rated Ally 31 | . . 31 . . Total Orders . | . . . . . Ally Attacks 8 | . . 8 . . Total Damage 86 | . . 86 . . Kills . | . . . . . Allies Corrupted . | . . . . . Allies Melted . | . . . . . Intel | -11 -10 -10 -10 -9 ------- Run | Yrd Mat Min Exi Min Active Infowar (turns) . | . . . . . Robot Analysis Total . | . . . . . Derelict Logs Recovered 2 | . . 2 . . Drone Launches . | . . . . . Drone Recoveries . | . . . . . Exploration | -11 -10 -10 -10 -9 ------------- Run | Yrd Mat Min Exi Min Turns Passed 3535 | 111 1439 956 993 36 Spaces Moved 1967 | 56 786 490 614 21 Core 6 | 5 1 . . . Treads 1961 | 51 785 490 614 21 Legs . | . . . . . Wheels . | . . . . . Hover . | . . . . . Flight . | . . . . . Fastest Speed 50 | 50 160 160 160 160 Average Speed 159 | 152 160 160 160 160 Slowest Speed 240 | 160 200 240 160 160 Overloaded Moves . | . . . . . Propulsion Burnouts . | . . . . . Robots Hopped . | . . . . . Potential Cave-ins . | . . . . . Cave-ins Triggered . | . . . . . Exploration Rate (%) 53 | 5 98 61 91 13 Regions Visited 4 Branch Regions 3 Pre-discovered Areas 1 | . . . 1 . Known Exits Taken . | . . . . . Unknown Exits Taken 4 | 1 1 1 1 . Scrap Searched . | . . . . . Spaces Dug . | . . . . . Terrain Destroyed 33 | . . 33 . . Melee . | . . . . . Projectile . | . . . . . AOE 33 | . . 33 . . Terrain Rammed . | . . . . . Walls Destroyed . | . . . . . Machines Disabled . | . . . . . Actions | -11 -10 -10 -10 -9 --------- Run | Yrd Mat Min Exi Min Total 2235 | 69 907 615 622 22 Wait 155 | . 62 93 . . Move 1963 | 55 785 489 613 21 Hop . | . . . . . Pick Up 18 | 3 13 1 1 . Fast Attach 16 | 6 8 2 . . Attach 1 | . . 1 . . Detach 2 | . 1 1 . . Swap 5 | . . 2 2 1 Drop 9 | . 7 1 1 . Fire 57 | 5 30 22 . . Melee 5 | . . . 5 . Ram . | . . . . . Kick . | . . . . . Crush 4 | . 1 3 . . Escape Stasis . | . . . . . Rewire . | . . . . . Trap . | . . . . . Miscellaneous . | . . . . . Route ------- -11/Scrapyard -10/Materials (discovered 4 exits: [*Mat x3] / [*Min]) -10/Mines (discovered 2 exits: *Exi / *Sub) -10/Exiles (discovered 2 exits: [*Min x2]) -9/Mines History --------- Turn | Location | Event 14 | -11/Scrapyard | Discovered new exit (range 14) 112 | -11/Scrapyard | Entered Materials 303 | -10/Materials | Build established: Mutant 417 | -10/Materials | Discovered new exit (range 3) 747 | -10/Materials | Discovered new exit (range 16) 1016 | -10/Materials | Discovered new exit (range 3) 1154 | -10/Materials | Discovered new exit (range 13) 1551 | -10/Materials | Entered Mines 1573 | -10/Mines | Learned Materials terminal intel 1614 | -10/Mines | Received a Rocket Launcher from a helpful Derelict 1811 | -10/Mines | Core integrity fell below 50% 1826 | -10/Mines | Identified exit to Subcaves 2501 | -10/Mines | Deemed a non-threat by the Exiles lab entrance 2501 | -10/Mines | Discovered new exit (range 5) 2507 | -10/Mines | Entered Exiles 2539 | -10/Exiles | Discovered new exit (range 14) 2583 | -10/Exiles | Met 8R-AWN 2607 | -10/Exiles | Met EX-HEX 2659 | -10/Exiles | Met EX-BIN 2679 | -10/Exiles | Aligned with FarCom system 2680 | -10/Exiles | Given EX-Vault access code 2746 | -10/Exiles | Opened EX-Vault 2761 | -10/Exiles | Found 0b10 Alert Chip 2795 | -10/Exiles | Warned to stay clear of 0b10 Research branches 2983 | -10/Exiles | Met EX-DEC 3039 | -10/Exiles | Visited The Gauntlet 3323 | -10/Exiles | Learned location of Zion (-7) 3478 | -10/Exiles | Discovered new exit (range 14) 3500 | -10/Exiles | Left Exiles lab with 0b10 Alert Chip 3500 | -10/Exiles | Entered Mines 3501 | -9/Mines | Assembled infested the area 3506 | -9/Mines | Assisted by a Guerilla fighting off Assembled 3512 | -9/Mines | Met a Derelict bent on vengeance 3536 | -9/Mines | Core integrity fell below 20% 3536 | -9/Mines | Destroyed by D-53 Grenadier with Mini Grenade Launcher Last Messages --------------- Who left my Assembled plushie in the Analyzer again?! I'm not erasing this message until I get an answer. --BIN 03478_ EXIT=FOUND LOCATION=UNKNOWN GOAL=ESCAPE 03500_ Receiving FarCom transmissions... 03501_ ALERT: Infestation in the mines, dispatching Demolisher response squad. 03501_ T-07 Excavator is excavating. 03506_ A derelict emerges from the shadows: "You need to get out of here! I've been tracking a group of Assembled to figure out where they're coming from, and they're closing on this area, come on!" 03508_ T-07 Excavator is excavating. 03526_ W7-Z7M(h): "I'll hold them off! Go on ahead or try to find another way!" 03527_ Plasma Injector explodes. 03527_ W7-Z7M(h) destroyed. Map ----- +----------------------------------------------------+ | ????????????????????????????????????????????? | | ????????????????????????????????????????????? | | ????????????????????????????????????????????? | | ????????????????????????????????????????????? | | ????????????????????????????????????????????? | | ????????????????????????????????????????????? | | ????????????????????????????????????????????? | | ????????????????????????????????????????????? | | ????????????????????????????????????????????? | | ????????????????????????????????????????????? | | ????????????????????????????????????????????? | | ????????????????????????????????????????????? | | ????????????????????????????????????????????? | | ????????????????????????????????????????????? | | ???????????????????????????? ???????????????? | | ??????????? ####??????????? ???????????????? | | ????????? #" # ??????????? #??????????????? | | ????????? "% ??##??????# #??????????????? | | ???????? ? ??????# #??????????????? | | ???????? ?# #?????# #??????????????? | | ???????? ## #?????# #??????????????? | | ????????# #;# ####### #??????????????? | | ?????????# =% ;; ## ##$##?????????????? | | ?????????# d ##????????????? | | ??????????# ; d ##???????????? | | ??????????????#; @ #???????????? | | ?????????????##; ##???????????? | | ?????????????#; ##????????????? | | ?????????????# #?????????????? | | ?????????# ##### # ##????????????? | | ???????# ????##### ##???????????? | | ??????# ?????????## ###?????????? | | ??????? ##### ??????????## ##????????? | | ??????? ??????##???????????# #????????? | | ??????????????????????????# #????????? | | ?????????????????????????# #????????? | | ?????????????????????????# ## #????????? | | ?????????????????????????# ?## ##????????? | | ?????????????????????????###??#####?????????? | | ????????????????????????????????????????????? | | ????????????????????????????????????????????? | | ????????????????????????????????????????????? | | ????????????????????????????????????????????? | | ????????????????????????????????????????????? | | ????????????????????????????????????????????? | | ????????????????????????????????????????????? | | ????????????????????????????????????????????? | | | | | | | +----------------------------------------------------+ Best States ------------- Heat Dissipation 25 Energy Generation 14 Energy Capacity 250 Matter Stores 300 Matter Capacity 300 Sight Range 16 Terrain Scan Density 10 Armor Coverage 150 Evasion (%) 40 Recoil Reduction 2 Item Schematics ----------------- None Robot Schematics ------------------ None Fabricated ------------ Nothing Repaired ---------- Nothing Alien Tech Used ----------------- None Achievements -------------- root@ Challenges ------------ None Game ------ Seed FieldNavigationDiverter Manual? 0 Play Time 00:25:16 Cumulative 6.7 hours Start 2025.06.29 @ 03:13:07 End 2025.06.29 @ 03:45:16 Sessions 1 Manual Loads 0 Difficulty Rogue Special Mode None Game No. 10 Rogue 10 Adventurer 0 Explorer 0 Win Type - Total 0 Types 0/0/0/0/0/0/0/0/0/0 Lore% 9 Gallery% 13 Achievement% 16 Wizard Run 0 Options --------- Layout 2 ASCII 0 Keyboard 0 Movement Mouse Keybinds 0 Fullscreen 1 Font 24/Smallcaps Map View 50x44 Zoom Use 0% Tactical HUD 1 Map Filters NONE Filters NONE Steam 1 RUN: 29e92a9d-9c6b-42ec-ae6c-00f08cbbd4b9